bitfinex/quotes_BTCUSD_20230113
["timestamp","ask_amount","ask_price","bid_price","bid_amount"]
[1673624951879,0.58942907,19286.0,19284.0,0.000625]
[1673624952125,0.58942907,19286.0,19283.0,9.0]
[1673624952126,0.618537,19285.0,19283.0,9.0]
[1673624952370,1.145574,19285.0,19283.0,9.0]
[1673624952618,1.145574,19285.0,19283.0,7.8716]
[1673624952871,0.5892129,19284.0,19283.0,7.8716]
[1673624953115,0.5892129,19284.0,19282.0,0.00469232]
[1673624953116,1.9,19283.0,19282.0,0.00469232]
[1673624953393,0.05418783,19276.0,19273.0,0.000625]
[1673624953641,0.05418783,19276.0,19272.0,0.000625]
[1673624953642,1.037612,19275.0,19272.0,0.000625]
[1673624954141,0.1,19274.0,19272.0,0.000625]
[1673624954386,0.51886,19273.0,19272.0,0.000625]
[1673624954644,0.61886,19273.0,19272.0,0.000625]
[1673624954893,0.91886,19273.0,19272.0,0.000625]
[1673624955143,1.56149,19273.0,19270.0,0.000625]
[1673624955392,1.56149,19273.0,19269.0,3.77299852]
[1673624955668,1.13772,19273.0,19271.0,0.000625]
[1673624955931,0.62586,19273.0,19271.0,0.21092994]
[1673624956189,0.05418783,19276.0,19271.0,0.150625]
[1673624956436,0.61709994,19276.0,19275.0,0.000625]
[1673624956696,0.61709994,19276.0,19274.0,0.000625]
[1673624956697,0.54957183,19276.0,19274.0,0.000625]
[1673624956962,0.08753,19273.0,19272.0,0.000625]
[1673624957209,0.07153,19273.0,19272.0,0.000625]
[1673624957704,0.37153,19273.0,19272.0,0.000625]
[1673624957963,0.37153,19273.0,19270.0,0.000625]
[1673624957964,0.17153,19273.0,19270.0,0.000625]
[1673624958208,0.618868,19273.0,19272.0,0.000625]
[1673624958451,1.1396394,19273.0,19272.0,0.000625]
[1673624958701,1.0326394,19273.0,19271.0,0.000625]
[1673624958951,0.1,19272.0,19271.0,0.000625]
[1673624959201,0.618887,19272.0,19271.0,0.000625]
[1673624959446,0.1,19272.0,19271.0,0.072545]
[1673624959694,0.234,19273.0,19271.0,0.000625]
[1673624959937,0.1,19275.0,19271.0,0.84367618]
[1673624960188,0.107,19272.0,19269.0,1.16804045]
[1673624960437,0.107,19272.0,19271.0,0.000625]
[1673624960689,0.107,19272.0,19271.0,0.072545]
[1673624960938,0.0002,19275.0,19272.0,0.14604383]
[1673624961185,0.0002,19275.0,19273.0,0.000625]
[1673624961186,0.51884,19274.0,19273.0,0.000625]
[1673624961687,0.51884,19274.0,19272.0,0.14666883]
[1673624961688,0.07153,19273.0,19272.0,0.14666883]
[1673624961930,0.1,19273.0,19272.0,0.14666883]
[1673624962675,0.2237684,19273.0,19272.0,0.14604383]
[1673624962913,1.5614884,19273.0,19272.0,0.14604383]
[1673624963656,2.09609137,19273.0,19272.0,0.14604383]
[1673624963892,2.84720852,19273.0,19272.0,0.14604383]
[1673624964134,2.93220852,19273.0,19272.0,0.008375]
[1673624964378,2.93220852,19273.0,19270.0,0.6]
[1673624964379,0.1,19272.0,19270.0,0.321103]
[1673624964633,2.0914747,19271.0,19270.0,0.183503]
[1673624964877,3.97708305,19271.0,19270.0,0.183503]
[1673624965126,4.51450339,19271.0,19270.0,0.183503]
[1673624965388,4.51450339,19271.0,19268.0,7.98e-06]
[1673624965389,0.1,19270.0,19268.0,7.98e-06]
[1673624965643,2.0916367,19269.0,19268.0,7.98e-06]
[1673624965931,2.94223671,19269.0,19267.0,0.00389274]
[1673624966186,0.8262327,19268.0,19267.0,0.00389274]
[1673624966427,1.6043277,19268.0,19267.0,0.00389274]
[1673624966673,1.95392312,19268.0,19267.0,0.00389274]
[1673624966915,2.50332313,19268.0,19267.0,2.74e-06]
[1673624967162,4.37423914,19268.0,19261.0,0.00632157]
[1673624967412,1.0,19264.0,19261.0,0.00632157]
[1673624967658,2.9112487,19263.0,19261.0,0.00632157]
[1673624967911,0.7766427,19262.0,19261.0,0.00632157]
[1673624968154,0.55891,19262.0,19261.0,0.00694657]
[1673624968407,0.09981,19262.0,19261.0,0.00694657]
[1673624968657,1.857387,19263.0,19262.0,0.4591]
[1673624968907,2.8280197,19263.0,19262.0,0.4591]
[1673624969166,2.6930197,19263.0,19262.0,0.4591]
[1673624969412,3.08781828,19263.0,19262.0,0.4591]
[1673624969664,3.44089593,19263.0,19262.0,0.4591]
[1673624969929,0.270639,19262.0,19261.0,0.00632157]
[1673624970173,3.75290416,19262.0,19261.0,2.157e-05]
[1673624970426,3.75290416,19262.0,19259.0,0.00626223]
[1673624970427,0.1,19261.0,19259.0,0.00626223]
[1673624970668,1.32041726,19261.0,19260.0,0.000625]
[1673624970919,0.4,19261.0,19260.0,0.000625]
[1673624971180,0.136,19262.0,19260.0,0.28284994]
[1673624971434,0.136,19262.0,19260.0,0.21092994]
[1673624971435,0.70000001,19261.0,19260.0,0.21092994]
[1673624971680,1.35418301,19261.0,19260.0,0.000625]
[1673624971940,1.31918301,19261.0,19260.0,0.000625]
[1673624972181,2.23152737,19261.0,19260.0,0.000625]
[1673624972438,1.1454157,19261.0,19260.0,0.000625]
[1673624972682,1.1539157,19261.0,19260.0,0.000625]
[1673624972932,0.627683,19261.0,19259.0,0.00626223]
[1673624973167,1.92819235,19260.0,19259.0,0.00626223]
[1673624973420,2.37279988,19260.0,19259.0,0.00626223]
[1673624973659,2.37279988,19260.0,19259.0,0.00688723]
[1673624973660,1.73856865,19260.0,19259.0,0.00688723]
[1673624973905,1.43842,19260.0,19259.0,0.00688723]
[1673624974396,1.17242,19260.0,19259.0,0.00688723]
[1673624974639,1.03779641,19260.0,19259.0,0.00688723]
[1673624974878,1.45095671,19260.0,19259.0,0.00688723]
[1673624975120,1.85168941,19260.0,19259.0,0.00688723]
[1673624975369,1.98268941,19260.0,19259.0,0.00688723]
[1673624975612,2.28268941,19260.0,19259.0,0.00688723]
[1673624976152,2.28268941,19260.0,19259.0,0.00626223]
[1673624976392,2.15168941,19260.0,19259.0,0.00626223]
[1673624976644,2.25461941,19260.0,19259.0,0.00626223]
[1673624976892,2.12161941,19260.0,19259.0,0.00626223]
[1673624977142,3.10501942,19260.0,19259.0,0.00626223]
[1673624977391,2.97101942,19260.0,19259.0,0.00626223]
[1673624977636,3.10601942,19260.0,19259.0,0.00626223]
[1673624977884,2.64245912,19260.0,19259.0,0.00688723]
[1673624978128,1.84272642,19260.0,19259.0,0.28911217]
[1673624978400,0.519168,19262.0,19259.0,0.28911217]
[1673624978646,0.519168,19262.0,19259.0,0.21030494]
[1673624978647,0.619168,19262.0,19259.0,0.21030494]
[1673624978905,0.619368,19262.0,19259.0,0.21030494]
[1673624979150,1.038524,19262.0,19258.0,0.1]
[1673624979409,0.0002,19262.0,19259.0,0.21030494]
[1673624979647,0.0002,19262.0,19261.0,0.1]
[1673624979894,0.1352,19262.0,19259.0,0.65281156]
[1673624980140,0.0002,19262.0,19258.0,1.06169765]
[1673624980400,0.15565516,19262.0,19261.0,0.1506]
[1673624980640,0.0002,19262.0,19261.0,1.82326094]
[1673624980880,0.0002,19262.0,19261.0,2.42326094]
[1673624980881,0.0144575,19262.0,19261.0,2.42326094]
[1673624981143,0.1,19269.0,19261.0,3.17413477]
[1673624981390,0.1,19269.0,19262.0,0.97654392]
[1673624981639,0.1,19269.0,19261.0,2.257549]
[1673624981640,0.618905,19272.0,19264.0,1.1382]
[1673624981892,0.618905,19272.0,19265.0,0.97640035]
[1673624981893,0.79280265,19272.0,19265.0,0.97640035]
[1673624982139,0.618905,19272.0,19266.0,0.21030494]
[1673624982395,0.618905,19272.0,19267.0,0.21030494]
[1673624982396,0.76036016,19272.0,19267.0,0.21030494]
[1673624982643,0.1002,19271.0,19268.0,0.21030494]
[1673624982896,0.0002,19271.0,19268.0,0.21030494]
[1673624983633,0.0002,19271.0,19269.0,0.1]
[1673624983879,0.0002,19271.0,19269.0,0.31030494]
[1673624984131,0.1322,19271.0,19269.0,0.618966]
[1673624984680,0.1322,19271.0,19270.0,0.1506]
[1673624984926,0.1322,19271.0,19269.0,0.1502]
[1673624985172,0.132,19271.0,19269.0,0.1502]
[1673624985689,0.132,19271.0,19269.0,0.2502]
[1673624986192,0.132,19271.0,19270.0,0.32399]
[1673624986433,0.518914,19271.0,19266.0,0.1496]
[1673624986682,0.15368922,19270.0,19266.0,0.1]
[1673624986926,0.27284094,19270.0,19266.0,0.1]
[1673624987175,0.15368922,19270.0,19266.0,0.1]
[1673624987452,0.15368922,19270.0,19267.0,0.1]
[1673624987695,0.016,19270.0,19269.0,0.2999]
[1673624987937,0.0002,19272.0,19269.0,0.62389]
[1673624988187,0.20559732,19272.0,19269.0,0.2999]
[1673624988426,0.20559732,19272.0,19265.0,1.458666]
[1673624988427,0.1,19271.0,19265.0,1.458666]
[1673624988671,0.67263322,19270.0,19265.0,1.458666]
[1673624988927,0.1,19268.0,19259.0,1.09412]
[1673624989175,0.15368922,19267.0,19263.0,0.519129]
[1673624989426,0.15368922,19267.0,19264.0,0.843092]
[1673624989665,0.15368922,19267.0,19265.0,0.42399]
[1673624989907,0.618985,19269.0,19264.0,0.519102]
[1673624990168,0.71253422,19269.0,19264.0,0.82940694]
[1673624990679,0.015,19267.0,19264.0,0.99110694]
[1673624990906,0.09354922,19267.0,19264.0,0.680802]
[1673624991192,0.09354922,19267.0,19264.0,0.1617]
[1673624991440,0.17290414,19267.0,19264.0,0.1617]
[1673624991685,0.72757722,19267.0,19263.0,0.519104]
[1673624991941,0.1,19266.0,19263.0,0.519104]
[1673624992185,0.09354922,19266.0,19263.0,0.519104]
[1673624992436,0.1152,19267.0,19263.0,0.519104]
[1673624992680,0.1152,19267.0,19263.0,1.24853794]
[1673624992938,0.94217132,19267.0,19263.0,0.519104]
[1673624993189,0.94317132,19267.0,19263.0,0.72940894]
[1673624993440,0.92717132,19267.0,19263.0,0.519104]
[1673624993679,1.46319732,19267.0,19263.0,0.72940894]
[1673624993926,1.32977522,19267.0,19263.0,0.72940894]
[1673624994169,1.236026,19267.0,19263.0,0.72940894]
[1673624994412,1.32957522,19267.0,19263.0,0.72940894]
[1673624994674,0.59621211,19266.0,19263.0,2.24853794]
[1673624994930,0.59621211,19266.0,19263.0,2.138233]
[1673624995175,0.617,19267.0,19263.0,2.038233]
[1673624995432,0.7406017,19267.0,19263.0,2.24853794]
[1673624995674,0.71054922,19267.0,19263.0,2.038233]
[1673624995916,0.61201266,19266.0,19263.0,2.038233]
[1673624996165,0.62601266,19266.0,19263.0,2.038233]
[1673624996420,0.61101266,19266.0,19263.0,2.038233]
[1673624996662,0.79374922,19267.0,19263.0,2.038233]
[1673624996663,0.7162,19267.0,19263.0,2.038233]
[1673624996906,0.48703399,19266.0,19263.0,2.24853794]
[1673624997114,0.015,19266.0,19263.0,2.038233]
[1673624997638,0.58396662,19266.0,19263.0,2.038233]
[1673624997884,0.56896662,19266.0,19263.0,2.038233]
[1673624998148,0.56896662,19266.0,19264.0,0.53004055]
[1673624998389,0.56896662,19266.0,19265.0,0.32399]
[1673624998649,1.119011,19268.0,19264.0,0.519099]
[1673624998885,0.0650653,19266.0,19265.0,0.72938094]
[1673624999129,0.0820653,19266.0,19263.0,1.68915801]
[1673624999365,0.0650653,19266.0,19264.0,0.1]
[1673624999626,0.0850653,19266.0,19264.0,0.1]
[1673624999877,0.0652653,19266.0,19264.0,0.1]
[1673625000128,0.0652653,19266.0,19263.0,1.1]
[1673625000129,0.0812653,19266.0,19263.0,1.1]
[1673625000375,0.0652653,19266.0,19263.0,1.1]
[1673625000624,0.0172,19266.0,19264.0,0.91721529]
[1673625000928,0.6,19271.0,19266.0,0.03713189]
[1673625001171,0.57342652,19270.0,19269.0,0.1603]
[1673625001423,0.57342652,19270.0,19269.0,0.37060494]
[1673625001664,0.57342652,19270.0,19269.0,0.1603]
[1673625001665,1.69236752,19270.0,19269.0,0.1603]
[1673625001916,1.69236752,19270.0,19269.0,0.159082]
[1673625002160,1.09236752,19270.0,19269.0,0.159082]
[1673625002410,1.637885,19270.0,19269.0,0.159082]
[1673625002654,1.637885,19270.0,19266.0,0.80264805]
[1673625002655,1.85569097,19270.0,19266.0,0.13713189]
[1673625002927,0.61978192,19269.0,19266.0,0.03713189]
[1673625003181,0.6,19267.0,19266.0,0.03713189]
[1673625003443,0.60998,19267.0,19266.0,0.03713189]
[1673625003936,0.52475962,19267.0,19266.0,0.03713189]
[1673625004178,0.59121429,19269.0,19266.0,0.86640783]
[1673625004430,0.07223929,19269.0,19267.0,0.42399]
[1673625004685,0.07223929,19269.0,19268.0,0.1618]
[1673625004686,0.518977,19269.0,19268.0,0.1618]
[1673625005179,0.0640677,19267.0,19266.0,0.03713189]
[1673625005432,0.1,19266.0,19263.0,1.05917853]
[1673625005677,1.13170122,19265.0,19263.0,0.53713189]
[1673625005935,0.55352922,19264.0,19263.0,0.53713189]
[1673625006435,0.49132,19264.0,19263.0,0.53713189]
[1673625006675,0.05362508,19264.0,19263.0,0.53713189]
[1673625006918,0.15362508,19264.0,19263.0,0.53713189]
[1673625007157,0.1,19264.0,19263.0,0.53713189]
[1673625007632,0.115,19264.0,19263.0,0.53713189]
[1673625007907,0.08653,19264.0,19263.0,0.53713189]
[1673625008398,0.17153,19264.0,19263.0,0.53713189]
[1673625008659,0.6835399,19264.0,19263.0,0.53713189]
[1673625008914,0.48653,19264.0,19263.0,0.53713189]
[1673625009144,0.990632,19264.0,19263.0,0.53713189]
[1673625009381,1.108632,19264.0,19263.0,0.53713189]
[1673625009634,0.990632,19264.0,19263.0,0.53713189]
[1673625009881,1.4295521,19264.0,19263.0,0.53713189]
[1673625010126,2.65578481,19264.0,19259.0,0.00791231]
[1673625010367,0.39132,19260.0,19259.0,0.00791231]
[1673625010616,1.94895,19260.0,19259.0,0.00791231]
[1673625011143,1.55763,19260.0,19259.0,0.07983231]
[1673625011384,1.95995,19260.0,19259.0,0.67633221]
[1673625011626,1.94895,19260.0,19259.0,0.00791231]
[1673625011884,1.99295,19260.0,19259.0,0.00791231]
[1673625012135,1.94895,19260.0,19259.0,0.00791231]
[1673625012381,2.166245,19260.0,19259.0,0.00791231]
[1673625012625,2.448245,19260.0,19259.0,0.00791231]
[1673625012863,2.492245,19260.0,19259.0,0.00791231]
[1673625013103,3.52608296,19260.0,19259.0,0.00791231]
[1673625013406,4.69638296,19260.0,19257.0,0.00703177]
[1673625013653,0.39132,19258.0,19255.0,0.00703177]
[1673625013937,0.39132,19256.0,19255.0,0.00703177]
[1673625014203,0.39132,19256.0,19255.0,7.7e-07]
[1673625014204,2.80779396,19256.0,19255.0,7.7e-07]
[1673625014448,2.80779396,19256.0,19254.0,0.00818098]
[1673625014449,2.2646887,19256.0,19254.0,0.00818098]
[1673625014696,1.00000001,19255.0,19254.0,0.00818098]
[1673625014943,2.13869001,19255.0,19254.0,0.00799098]
[1673625015192,3.12235516,19255.0,19254.0,0.00799098]
[1673625015438,0.1,19254.0,19253.0,0.00706076]
[1673625015682,2.49098357,19254.0,19253.0,0.00706076]
[1673625016005,1.61069201,19254.0,19253.0,0.00706076]
[1673625016668,0.910692,19254.0,19253.0,0.00706076]
[1673625016920,0.805042,19254.0,19253.0,0.00706076]
[1673625017667,1.105042,19254.0,19253.0,0.00706076]
[1673625017914,2.5084152,19254.0,19253.0,0.00706076]
[1673625018156,2.9478637,19254.0,19253.0,0.00706076]
[1673625018402,3.30841521,19254.0,19253.0,0.00706076]
[1673625018646,3.83464791,19254.0,19253.0,0.00706076]
[1673625018898,3.97064791,19254.0,19253.0,0.00706076]
[1673625019146,3.97914791,19254.0,19253.0,0.00706076]
[1673625019393,3.84314791,19254.0,19253.0,0.00706076]
[1673625019654,3.84314791,19254.0,19252.0,0.00706076]
[1673625019655,0.1,19253.0,19252.0,0.00412152]
[1673625019917,3.0493455,19253.0,19252.0,0.00412152]
[1673625020406,2.13879801,19253.0,19252.0,0.00412152]
[1673625020661,2.17479801,19253.0,19252.0,0.00412152]
[1673625020903,1.73879801,19253.0,19252.0,0.00412152]
[1673625021169,2.17379801,19253.0,19252.0,0.00412152]
[1673625021412,1.73879801,19253.0,19252.0,0.00412152]
[1673625021680,1.87379801,19253.0,19252.0,0.00412152]
[1673625021937,0.7558089,19253.0,19252.0,0.07604152]
[1673625022178,1.87279801,19253.0,19252.0,0.00412152]
[1673625022418,1.172798,19253.0,19252.0,0.00412152]
[1673625022684,1.23554164,19253.0,19252.0,0.00412152]
[1673625023196,1.171798,19253.0,19252.0,0.00412152]
[1673625023456,1.271798,19253.0,19252.0,0.00412152]
[1673625023701,1.171798,19253.0,19252.0,0.00393155]
[1673625023944,1.29913284,19253.0,19252.0,0.00393155]
[1673625024190,1.271798,19253.0,19252.0,0.00393155]
[1673625024481,1.571798,19253.0,19252.0,0.00393155]
[1673625024729,1.438798,19253.0,19252.0,0.00393155]
[1673625024994,2.1000307,19253.0,19252.0,0.00393155]
[1673625025236,2.45304337,19253.0,19252.0,0.00393155]
[1673625025726,2.31804337,19253.0,19252.0,0.00393155]
[1673625025967,3.15404338,19253.0,19252.0,0.00393155]
[1673625026224,3.01804338,19253.0,19252.0,0.00393155]
[1673625026468,3.15404338,19253.0,19252.0,0.00393155]
[1673625026706,3.16254338,19253.0,19252.0,0.00393155]
[1673625027209,3.16254338,19253.0,19252.0,3.155e-05]
[1673625027210,4.78099424,19253.0,19252.0,3.155e-05]
[1673625027483,4.78099424,19253.0,19247.0,0.00860495]
[1673625027484,0.00389845,19252.0,19247.0,0.00860495]
[1673625027735,0.39132,19248.0,19247.0,0.00860495]
[1673625027985,2.04347122,19248.0,19247.0,0.00860495]
[1673625028234,2.249922,19248.0,19247.0,0.00860495]
[1673625028739,1.949922,19248.0,19247.0,0.00860495]
[1673625029235,0.654534,19248.0,19247.0,0.00860495]
[1673625029499,0.519513,19249.0,19248.0,0.51953399]
[1673625030248,0.4275547,19250.0,19248.0,0.51953399]
[1673625030494,1.09132001,19252.0,19249.0,0.21030494]
[1673625030495,0.70000001,19252.0,19249.0,0.21030494]
[1673625030745,0.06942339,19253.0,19251.0,0.1603]
[1673625030995,0.910639,19256.0,19252.0,0.32399]
[1673625031251,0.910639,19256.0,19253.0,0.31030494]
[1673625031252,0.05298553,19254.0,19253.0,0.31030494]
[1673625031463,0.06283749,19253.0,19251.0,1.199204]
[1673625031740,0.06283749,19253.0,19252.0,0.1]
[1673625031991,0.06283749,19253.0,19251.0,1.199204]
[1673625032234,0.06283749,19253.0,19252.0,0.007]
[1673625032477,0.06139976,19252.0,19251.0,0.669753]
[1673625032725,0.06139976,19252.0,19251.0,0.673753]
[1673625032972,0.037,19253.0,19251.0,2.26223364]
[1673625033220,0.0002,19256.0,19253.0,0.16947549]
[1673625033474,0.06201208,19256.0,19254.0,0.98640687]
[1673625033723,0.06181208,19256.0,19255.0,0.42399]
[1673625033972,0.06181208,19256.0,19255.0,1.105135]
[1673625034221,0.1114998,19260.0,19255.0,1.105135]
[1673625034470,0.0114998,19260.0,19256.0,0.53429494]
[1673625034720,0.1114998,19260.0,19257.0,0.21030494]
[1673625035461,0.1114998,19260.0,19256.0,0.1]
[1673625035462,0.0114998,19260.0,19256.0,0.1]
[1673625035716,0.05625113,19259.0,19256.0,0.41730494]
[1673625035978,0.05625113,19259.0,19253.0,0.68904549]
[1673625035979,0.09354922,19258.0,19253.0,0.68904549]
[1673625036229,0.09354922,19257.0,19254.0,0.1]
[1673625037018,0.09354922,19257.0,19253.0,0.16966549]
[1673625037019,0.1,19254.0,19253.0,0.16966549]
[1673625037262,0.18583601,19254.0,19253.0,0.16966549]
[1673625037515,1.22458001,19254.0,19253.0,0.16947549]
[1673625037754,1.138744,19254.0,19253.0,0.16947549]
[1673625038012,0.519372,19254.0,19253.0,0.16947549]
[1673625038496,0.58943386,19254.0,19253.0,0.22947549]
[1673625038752,0.68443386,19254.0,19253.0,0.16947549]
[1673625039014,0.69484367,19254.0,19253.0,0.17047549]
[1673625039279,1.138744,19254.0,19253.0,0.16947549]
[1673625039522,1.438744,19254.0,19253.0,0.16947549]
[1673625039775,1.438744,19254.0,19253.0,0.22947549]
[1673625039776,1.443744,19254.0,19253.0,0.22947549]
[1673625040265,1.143744,19254.0,19253.0,0.22947549]
[1673625040538,1.438744,19254.0,19253.0,0.16947549]
[1673625040772,1.219744,19254.0,19253.0,0.12847549]
[1673625041030,1.138744,19254.0,19253.0,0.11947549]
[1673625041275,1.218744,19254.0,19253.0,0.12847549]
[1673625041785,1.91874401,19254.0,19253.0,0.12847549]
[1673625042032,2.21874401,19254.0,19253.0,0.12847549]
[1673625042279,2.21844401,19254.0,19253.0,0.12847549]
[1673625043294,2.30428002,19254.0,19253.0,0.12847549]
[1673625043554,3.3441432,19254.0,19253.0,0.12847549]
[1673625043803,3.3192932,19254.0,19253.0,0.12847549]
[1673625044057,2.71982671,19254.0,19253.0,0.12847549]
[1673625044313,2.19359401,19254.0,19253.0,0.12847549]
[1673625044815,2.11359401,19254.0,19253.0,0.11947549]
[1673625045055,2.25789816,19254.0,19253.0,0.12847549]
[1673625045300,2.79263086,19254.0,19253.0,0.12847549]
[1673625045547,3.86487069,19254.0,19253.0,0.12847549]
[1673625045794,4.05271092,19254.0,19253.0,4.9e-07]
[1673625046089,5.05560054,19254.0,19253.0,4.9e-07]
[1673625046333,4.74596688,19254.0,19253.0,4.9e-07]
[1673625046575,5.06533515,19254.0,19253.0,4.9e-07]
[1673625046817,5.06533515,19254.0,19248.0,0.51953399]
[1673625046818,3.83412532,19254.0,19248.0,0.51953399]
[1673625047060,0.70000001,19252.0,19248.0,0.73002893]
[1673625047309,1.858374,19251.0,19248.0,0.51972399]
[1673625047575,1.858374,19251.0,19248.0,1.14746121]
[1673625047576,1.430236,19251.0,19248.0,1.14746121]
[1673625047827,1.430236,19251.0,19249.0,0.1]
[1673625048567,0.05452144,19250.0,19249.0,0.1]
[1673625049083,0.05452144,19250.0,19248.0,0.61953399]
[1673625049341,0.05452144,19250.0,19248.0,0.51953399]
[1673625050330,0.39132,19249.0,19248.0,0.51953399]
[1673625050588,0.135,19250.0,19248.0,1.043681]
[1673625050830,0.135,19250.0,19249.0,0.93192187]
[1673625051079,0.135,19250.0,19249.0,1.6036252]
[1673625051321,0.135,19250.0,19249.0,1.98268267]
[1673625051574,0.135,19250.0,19249.0,1.39332026]
[1673625052309,0.135,19250.0,19249.0,2.03603062]
[1673625053079,0.135,19250.0,19248.0,1.29996799]
[1673625053080,0.14777009,19250.0,19248.0,1.29996799]
[1673625053327,0.14777009,19250.0,19249.0,0.002]
[1673625053328,0.135,19250.0,19249.0,0.002]
[1673625053587,0.135,19250.0,19249.0,0.50210804]
[1673625053832,0.05459909,19251.0,19249.0,0.60010804]
[1673625054331,0.135,19250.0,19249.0,0.60010804]
[1673625054577,0.05459909,19251.0,19249.0,0.60010804]
[1673625054829,0.135,19250.0,19249.0,0.76210804]
[1673625055075,0.05459909,19251.0,19249.0,1.80112104]
[1673625055319,0.08583601,19251.0,19250.0,0.32399]
[1673625055570,0.06826654,19250.0,19248.0,1.03904699]
[1673625055814,0.06826654,19250.0,19249.0,0.1]
[1673625056066,0.06826654,19250.0,19249.0,0.620507]
[1673625056301,0.06826654,19250.0,19249.0,0.619507]
[1673625056570,0.06826654,19250.0,19249.0,1.139014]
[1673625057086,0.135,19250.0,19249.0,1.141014]
[1673625057330,0.07544135,19250.0,19249.0,1.977956]
[1673625057818,0.07544135,19250.0,19249.0,1.969456]
[1673625059084,0.07544135,19250.0,19249.0,1.92689308]
[1673625059346,0.1389522,19250.0,19249.0,1.7761448]
[1673625059597,0.1389522,19250.0,19249.0,1.72334108]
[1673625059598,1e-08,19250.0,19249.0,1.72334108]
[1673625059843,0.00852332,19252.0,19250.0,0.68639355]
[1673625060085,0.00852332,19252.0,19251.0,2.032649]
[1673625060327,0.00832332,19252.0,19251.0,2.032649]
[1673625060574,0.39132,19252.0,19251.0,1.708659]
[1673625060822,0.39132,19252.0,19251.0,1.038906]
[1673625061816,0.40151985,19252.0,19251.0,1.048906]
[1673625062304,0.40151985,19252.0,19251.0,1.200106]
[1673625062809,0.40151985,19252.0,19251.0,1.048906]
[1673625063538,0.40151985,19252.0,19251.0,1.308906]
[1673625064037,0.39132,19252.0,19251.0,1.308906]
[1673625064275,0.40156165,19252.0,19251.0,1.308906]
[1673625064515,0.39132,19252.0,19251.0,0.27]
[1673625064771,0.94633942,19252.0,19251.0,0.27]
[1673625065272,0.7911489,19252.0,19251.0,0.27]
[1673625065504,0.94633942,19252.0,19251.0,0.27]
[1673625065753,1.80517116,19252.0,19251.0,0.27]
[1673625065987,2.19195849,19252.0,19251.0,0.27]
[1673625066464,2.19195849,19252.0,19251.0,0.24300001]
[1673625066466,2.16170923,19252.0,19251.0,0.24300001]
[1673625066714,2.4721344,19252.0,19251.0,0.24300001]
[1673625066970,3.5262931,19252.0,19251.0,0.24300001]
[1673625067218,3.21586793,19252.0,19251.0,0.24300001]
[1673625067481,2.83269435,19252.0,19251.0,0.24300001]
[1673625067720,1.93433548,19252.0,19251.0,0.24300001]
[1673625067968,1.85994463,19252.0,19251.0,0.24300001]
[1673625068219,2.01513833,19252.0,19251.0,0.24300001]
[1673625068460,1.87913833,19252.0,19251.0,0.24300001]
[1673625068701,2.01413833,19252.0,19251.0,0.24300001]
[1673625068944,2.73006838,19252.0,19251.0,0.24300001]
[1673625069186,3.24110733,19252.0,19251.0,0.24300001]
[1673625069680,2.04757871,19252.0,19251.0,0.24300001]
[1673625069959,1.46856813,19252.0,19251.0,0.45330495]
[1673625070204,1.23580235,19252.0,19251.0,1.28190601]
[1673625070450,1.22614891,19252.0,19251.0,1.28190601]
[1673625070691,1.22614891,19252.0,19251.0,1.88247199]
[1673625070940,0.83500001,19252.0,19251.0,2.18347199]
[1673625071187,0.135,19252.0,19251.0,2.21720095]
[1673625071435,0.135,19252.0,19251.0,2.58499009]
[1673625071934,0.29454856,19254.0,19251.0,2.58499009]
[1673625072183,0.29454856,19254.0,19253.0,0.1501]
[1673625072430,0.68569746,19254.0,19253.0,0.1501]
[1673625072673,0.68569746,19254.0,19253.0,1.188898]
[1673625072921,0.67637461,19254.0,19253.0,1.188898]
[1673625073168,0.67637461,19254.0,19253.0,1.77581003]
[1673625073415,0.67637461,19254.0,19253.0,0.519399]
[1673625073900,0.89821062,19254.0,19253.0,1.039798]
[1673625074171,0.89821062,19254.0,19253.0,0.520399]
[1673625074172,0.9675488,19254.0,19253.0,0.520399]
[1673625074659,1.50031458,19254.0,19253.0,0.520399]
[1673625074914,1.50031458,19254.0,19253.0,0.001]
[1673625075184,1.75553124,19254.0,19253.0,0.001]
[1673625075685,1.78924742,19254.0,19253.0,0.001]
[1673625075944,1.41813656,19254.0,19253.0,0.001]
[1673625076189,1.34046329,19254.0,19253.0,0.001]
[1673625076436,2.07954848,19254.0,19253.0,0.001]
[1673625076700,2.75127001,19254.0,19253.0,0.001]
[1673625077195,2.44045934,19254.0,19253.0,0.001]
[1673625077687,2.05193392,19254.0,19253.0,0.001]
[1673625077935,2.31313757,19254.0,19253.0,0.001]
[1673625078188,2.70170937,19254.0,19253.0,0.001]
[1673625078443,2.31313757,19254.0,19253.0,0.001]
[1673625078702,2.44050415,19254.0,19253.0,0.001]
[1673625078947,2.04964498,19254.0,19253.0,0.001]
[1673625079205,1.68926012,19254.0,19253.0,0.73070394]
[1673625079448,1.68926012,19254.0,19253.0,1.039798]
[1673625079449,1.53383464,19254.0,19253.0,1.039798]
[1673625080452,0.83383463,19254.0,19253.0,1.039798]
[1673625080700,0.8246938,19254.0,19253.0,1.039798]
[1673625080943,0.8246938,19254.0,19253.0,1.75476473]
[1673625081188,0.8246938,19254.0,19253.0,2.07875473]
[1673625081675,0.4335449,19254.0,19253.0,2.01476473]
[1673625081921,0.4335449,19254.0,19253.0,2.11476473]
[1673625082420,0.4335449,19254.0,19253.0,2.43875473]
[1673625082926,0.14831919,19254.0,19253.0,2.43875473]
[1673625083906,0.14831919,19254.0,19253.0,2.43775473]
[1673625083907,0.01231919,19254.0,19253.0,2.43775473]
[1673625084156,0.01231919,19254.0,19253.0,2.45275473]
[1673625084157,0.01631919,19254.0,19253.0,2.45275473]
[1673625084409,0.01631919,19254.0,19253.0,2.56816167]
[1673625084410,0.01231919,19254.0,19253.0,2.56816167]
[1673625084646,0.02531919,19254.0,19253.0,2.59816167]
[1673625084898,0.01231919,19254.0,19253.0,2.56816167]
[1673625085167,0.02531919,19254.0,19253.0,2.59816167]
[1673625085430,0.01231919,19254.0,19253.0,2.56816167]
[1673625085675,2.61625671,19255.0,19253.0,2.49816167]
[1673625085919,2.99962342,19255.0,19254.0,0.32399]
[1673625086169,2.99962342,19255.0,19254.0,1.038744]
[1673625086429,3.0094322,19255.0,19254.0,1.038744]
[1673625086923,2.60847452,19255.0,19254.0,1.76849997]
[1673625087186,2.62147452,19255.0,19254.0,1.85319997]
[1673625087433,2.62147452,19255.0,19254.0,1.95319997]
[1673625087675,2.62147452,19255.0,19254.0,1.85319997]